[Event "Championnat du monde jeunes U12"]
[Date "2024.11.26"]
[White "Nicot, Valentin"]
[Black "Su, Jayden Chenxuan"]
[WhiteElo "2078"]
[BlackElo "1700"]
[Round "11.51"]
[Result "1-0"]
[TimeControl "5400+30"]

1. e4 {[%clk 1:30:21]} 1... e5 {[%clk 1:30:54]} 2. Nf3 {[%clk 1:30:35]} 2... Nc6
{[%clk 1:31:16]} 3. d4 {[%clk 1:31:01]} 3... exd4 {[%clk 1:31:38]} 4. Nxd4
{[%clk 1:31:30]} 4... Qf6 {[%clk 1:31:44]} 5. Nb3 {[%clk 1:31:46]} 5... Qg6
{[%clk 1:31:31]} 6. f3 {[%clk 1:32:03]} 6... Nf6 {[%clk 1:30:52]} 7. Nc3 {[%clk
1:31:56]} 7... Bb4 {[%clk 1:31:07]} 8. Bd2 {[%clk 1:30:00]} 8... O-O {[%clk
1:31:23]} 9. a3 {[%clk 1:21:47]} 9... Bxc3 {[%clk 1:30:18]} 10. Bxc3 {[%clk
1:22:02]} 10... Re8 {[%clk 1:30:28]} 11. Qd2 {[%clk 1:19:19]} 11... a6 {[%clk
1:29:01]} 12. O-O-O {[%clk 1:19:09]} 12... b5 {[%clk 1:27:35]} 13. Bd3 {[%clk
1:18:56]} 13... Qh6 {[%clk 1:27:06]} 14. Qxh6 {[%clk 1:19:23]} 14... gxh6 {[%clk
1:27:19]} 15. Bxf6 {[%clk 1:19:51]} 15... Re6 {[%clk 1:27:02]} 16. Bc3 {[%clk
1:20:09]} 16... d6 {[%clk 1:26:30]} 17. f4 {[%clk 1:19:08]} 17... Bd7 {[%clk
1:22:34]} 18. e5 {[%clk 1:18:49]} 18... Rd8 {[%clk 1:21:09]} 19. f5 {[%clk
1:19:03]} 19... Ree8 {[%clk 1:21:27]} 20. exd6 {[%clk 1:18:52]} 20... cxd6
{[%clk 1:21:45]} 21. Rhe1 {[%clk 1:19:00]} 21... Ne5 {[%clk 1:21:53]} 22. Bxe5
{[%clk 1:19:19]} 22... dxe5 {[%clk 1:22:15]} 23. Be4 {[%clk 1:19:41]} 23... Re7
{[%clk 1:22:09]} 24. Nc5 {[%clk 1:19:59]} 24... f6 {[%clk 1:22:21]} 25. Bd5+
{[%clk 1:19:50]} 25... Kf8 {[%clk 1:22:38]} 26. Be6 {[%clk 1:20:17]} 26... Ke8
{[%clk 1:22:59]} 27. Nxd7 {[%clk 1:20:46]} 27... Rg7 {[%clk 1:22:11]} 28. Nxf6+
{[%clk 1:21:13]} 28... Ke7 {[%clk 1:22:33]} 29. Rxd8 {[%clk 1:21:40]} 29... Kxd8
{[%clk 1:22:55]} 30. Rd1+ {[%clk 1:22:02]} 30... Ke7 {[%clk 1:23:20]} 31. Nd5+
{[%clk 1:22:29]} 31... Kf8 {[%clk 1:23:45]} 32. f6 {[%clk 1:22:52]} 32... Rxg2
{[%clk 1:24:09]} 33. Nf4 {[%clk 1:23:17]} 1-0

[Variant "Standard"]
[Site "Europe Echecs"]

[Event "Championnat du monde jeunes U12"]
[Date "2024.11.26"]
[White "Wang, Yu-Chi Xavier"]
[Black "Petrovski, Nikola"]
[WhiteElo "1543"]
[BlackElo "1829"]
[Round "11.52"]
[Result "1-0"]
[TimeControl "5400+30"]

1. e4 {[%clk 1:30:57]} 1... e5 {[%clk 1:30:30]} 2. Nf3 {[%clk 1:31:10]} 2... Nc6
{[%clk 1:30:55]} 3. Bb5 Bc5 {[%clk 1:28:07]} 4. Nc3 {[%clk 1:26:37]} 4... d6
{[%clk 1:27:47]} 5. Na4 {[%clk 1:19:58]} 5... Bb6 {[%clk 1:24:33]} 6. Nxb6
{[%clk 1:18:36]} 6... axb6 {[%clk 1:24:52]} 7. h3 {[%clk 1:14:03]} 7... Nf6
{[%clk 1:25:13]} 8. d3 {[%clk 1:13:43]} 8... h6 {[%clk 1:25:37]} 9. O-O {[%clk
1:12:47]} 9... O-O {[%clk 1:26:02]} 10. Bxc6 {[%clk 1:09:51]} 10... bxc6 {[%clk
1:26:26]} 11. c3 {[%clk 1:08:32]} 11... Be6 {[%clk 1:26:35]} 12. a3 {[%clk
1:03:53]} 12... Re8 {[%clk 1:23:03]} 13. Re1 {[%clk 1:03:27]} 13... Qd7 {[%clk
1:16:04]} 14. d4 {[%clk 0:47:29]} 14... exd4 {[%clk 1:09:51]} 15. cxd4 {[%clk
0:43:33]} 15... Bc4 {[%clk 1:09:56]} 16. Nd2 {[%clk 0:36:05]} 16... Ba6 {[%clk
0:58:44]} 17. b4 {[%clk 0:30:17]} 17... c5 {[%clk 0:53:08]} 18. Bb2 {[%clk
0:27:31]} 18... cxd4 {[%clk 0:43:28]} 19. Bxd4 {[%clk 0:27:35]} 19... Nh7 {[%clk
0:41:30]} 20. Re3 {[%clk 0:23:51]} 20... Ng5 {[%clk 0:24:43]} 21. Rg3 {[%clk
0:15:43]} 21... g6 {[%clk 0:21:51]} 22. Qc2 {[%clk 0:10:44]} 22... Bb7 {[%clk
0:16:11]} 23. Re1 {[%clk 0:06:46]} 23... c5 {[%clk 0:15:36]} 24. Ba1 {[%clk
0:04:33]} 24... cxb4 25. Qb2 {[%clk 0:04:24]} 25... Re5 {[%clk 0:13:14]} 26. Nc4
{[%clk 0:03:24]} 26... bxa3 {[%clk 0:11:02]} 27. Qc3 {[%clk 0:03:01]} 27... Nxe4
{[%clk 0:08:15]} 28. Nxe5 {[%clk 0:02:53]} 28... dxe5 {[%clk 0:07:55]} 29. Qxe5
{[%clk 0:01:03]} 29... f6 {[%clk 0:08:19]} 30. Rxg6+ {[%clk 0:01:26]} 30... Kh7
{[%clk 0:08:08]} 31. Qh5 {[%clk 0:01:28]} 31... Qd2 {[%clk 0:08:32]} 32. Re2
{[%clk 0:00:44]} 32... Qf4 {[%clk 0:06:59]} 33. g3 {[%clk 0:00:52]} 33... Qc1+
{[%clk 0:05:35]} 34. Kh2 {[%clk 0:01:05]} 34... Qh1+ {[%clk 0:04:12]} 35. Kxh1
{[%clk 0:01:29]} 35... Nxg3+ {[%clk 0:04:39]} 36. Kh2 {[%clk 0:01:38]} 36...
Nxh5 {[%clk 0:05:07]} 37. Rg1 {[%clk 0:01:52]} 37... Bf3 {[%clk 0:04:46]} 38.
Re7+ {[%clk 0:02:11]} 38... Kh8 {[%clk 0:05:13]} 39. Rg6 {[%clk 0:01:54]} 39...
Rf8 {[%clk 0:03:04]} 40. Rxh6+ {[%clk 0:02:17]} 40... Kg8 {[%clk 0:03:30]} 41.
Reh7 {[%clk 0:01:05]} 41... Rf7 {[%clk 0:03:14]} 42. Rh8+ {[%clk 0:01:20]} 42...
Kg7 {[%clk 0:03:40]} 43. R6h7+ {[%clk 0:01:12]} 43... Kg6 {[%clk 0:04:05]} 44.
Rxf7 {[%clk 0:01:11]} 44... Kxf7 {[%clk 0:04:31]} 45. Rb8 {[%clk 0:01:25]} 45...
Nf4 {[%clk 0:04:45]} 46. Rxb6 {[%clk 0:01:43]} 46... Ne2 {[%clk 0:04:57]} 47.
Rxf6+ {[%clk 0:02:02]} 1-0

[Variant "Standard"]
[Site "Europe Echecs"]

[Event "Championnat du monde jeunes U12"]
[Date "2024.11.26"]
[White "Simiyu Jadon"]
[Black "Zutautas, Mantas"]
[WhiteElo "1784"]
[BlackElo "1540"]
[Round "11.53"]
[Result "1-0"]
[TimeControl "5400+30"]

1. e4 {[%clk 1:30:31]} 1... e6 {[%clk 1:30:46]} 2. d4 {[%clk 1:30:54]} 2... d5
{[%clk 1:31:12]} 3. Nd2 {[%clk 1:31:18]} 3... dxe4 {[%clk 1:31:27]} 4. Nxe4
{[%clk 1:31:40]} 4... Nd7 {[%clk 1:31:48]} 5. Nf3 {[%clk 1:32:04]} 5... Ngf6
{[%clk 1:32:05]} 6. Nxf6+ {[%clk 1:32:26]} 6... Nxf6 {[%clk 1:32:28]} 7. Bd3
{[%clk 1:32:49]} 7... c5 {[%clk 1:30:07]} 8. O-O {[%clk 1:33:02]} 8... a6 {[%clk
1:25:30]} 9. Bg5 {[%clk 1:30:20]} 9... Be7 {[%clk 1:24:06]} 10. dxc5 {[%clk
1:30:31]} 10... Bxc5 {[%clk 1:23:55]} 11. Qe2 {[%clk 1:30:41]} 11... O-O {[%clk
1:24:12]} 12. Rad1 {[%clk 1:30:57]} 12... Qc7 {[%clk 1:23:45]} 13. c4 {[%clk
1:20:34]} 13... b6 {[%clk 1:19:58]} 14. Ne5 {[%clk 0:58:01]} 14... Nd7 {[%clk
1:14:21]} 15. Bf4 {[%clk 0:58:06]} 15... Nxe5 {[%clk 1:12:12]} 16. Bxe5 {[%clk
0:58:00]} 16... Qe7 {[%clk 1:10:52]} 17. a3 {[%clk 0:45:10]} 17... a5 {[%clk
1:09:09]} 18. b4 {[%clk 0:42:11]} 18... axb4 {[%clk 1:04:59]} 19. axb4 {[%clk
0:42:32]} 19... Bxb4 {[%clk 1:05:04]} 20. Qe4 {[%clk 0:42:54]} 20... g6 {[%clk
0:59:38]} 21. Qxa8 {[%clk 0:43:04]} 21... Bb7 {[%clk 1:00:00]} 22. Qa2 {[%clk
0:43:10]} 22... Qg5 {[%clk 0:56:57]} 23. Bg3 {[%clk 0:41:48]} 23... Bc5 {[%clk
0:55:56]} 24. Qd2 {[%clk 0:41:13]} 24... Qf6 {[%clk 0:51:12]} 25. Qf4 {[%clk
0:41:14]} 25... Qc3 {[%clk 0:50:51]} 26. Be2 {[%clk 0:41:08]} 26... Ra8 {[%clk
0:49:16]} 27. Rd7 {[%clk 0:41:00]} 27... Bc6 {[%clk 0:46:23]} 28. Qxf7+ {[%clk
0:41:09]} 28... Kh8 {[%clk 0:46:47]} 1-0

[Variant "Standard"]
[Site "Europe Echecs"]

[Event "Championnat du monde jeunes U12"]
[Date "2024.11.26"]
[White "Lee, Daniel Joshua"]
[Black "Huang, Hao-Xuan"]
[WhiteElo "1765"]
[BlackElo "1516"]
[Round "11.54"]
[Result "1-0"]
[TimeControl "5400+30"]

1. e4 {[%clk 1:30:59]} 1... e5 {[%clk 1:30:20]} 2. Nf3 {[%clk 1:31:24]} 2... Nc6
{[%clk 1:30:37]} 3. Bc4 {[%clk 1:31:40]} 3... Nf6 {[%clk 1:30:33]} 4. d3 {[%clk
1:31:59]} 4... Bc5 {[%clk 1:30:10]} 5. c3 {[%clk 1:32:22]} 5... O-O {[%clk
1:30:06]} 6. O-O {[%clk 1:32:32]} 6... d6 {[%clk 1:28:42]} 7. Bg5 {[%clk
1:30:51]} 7... Bg4 {[%clk 1:27:00]} 8. Nbd2 {[%clk 1:28:34]} 8... h6 {[%clk
1:24:21]} 9. Bh4 {[%clk 1:28:09]} 9... Qe7 {[%clk 1:13:43]} 10. h3 {[%clk
1:27:15]} 10... Bh5 {[%clk 1:12:44]} 11. Re1 {[%clk 1:26:15]} 11... Rfe8 {[%clk
1:09:58]} 12. Nf1 {[%clk 1:25:21]} 12... Rad8 {[%clk 1:00:12]} 13. Ne3 {[%clk
1:21:43]} 13... Bxe3 {[%clk 0:56:00]} 14. Rxe3 {[%clk 1:21:31]} 14... Na5 {[%clk
0:52:41]} 15. Bb5 {[%clk 1:21:18]} 15... c6 {[%clk 0:51:41]} 16. Ba4 {[%clk
1:20:59]} 16... b5 {[%clk 0:50:21]} 17. Bc2 {[%clk 1:12:12]} 17... c5 {[%clk
0:41:50]} 18. Qe1 {[%clk 1:01:45]} 18... Nc6 {[%clk 0:38:05]} 19. Bb3 {[%clk
0:57:36]} 19... a5 {[%clk 0:29:42]} 20. a4 {[%clk 0:57:23]} 20... b4 {[%clk
0:28:39]} 21. Bc4 {[%clk 0:55:50]} 21... Rc8 {[%clk 0:24:36]} 22. Nd2 {[%clk
0:42:00]} 22... g5 {[%clk 0:17:26]} 23. Bg3 {[%clk 0:42:03]} 23... Qc7 {[%clk
0:15:37]} 24. Nb3 {[%clk 0:37:54]} 24... Nd7 {[%clk 0:14:09]} 25. h4 {[%clk
0:35:41]} 25... g4 {[%clk 0:10:59]} 26. Rc1 {[%clk 0:29:40]} 26... Qb6 {[%clk
0:09:13]} 27. Qd2 {[%clk 0:26:46]} 27... Nf6 {[%clk 0:08:25]} 28. Bb5 {[%clk
0:25:16]} 28... Red8 {[%clk 0:08:17]} 29. Re2 {[%clk 0:21:46]} 29... Kh7 {[%clk
0:07:42]} 30. Qc2 {[%clk 0:15:37]} 30... Bg6 {[%clk 0:07:00]} 31. Nd2 {[%clk
0:13:45]} 31... Nh5 {[%clk 0:06:46]} 32. Nc4 {[%clk 0:11:26]} 32... Qa7 {[%clk
0:06:11]} 33. Ne3 {[%clk 0:10:08]} 33... Nd4 {[%clk 0:04:39]} 34. cxd4 {[%clk
0:10:09]} 34... cxd4 {[%clk 0:04:57]} 35. Nc4 {[%clk 0:09:42]} 35... Nf4 {[%clk
0:03:48]} 36. Bxf4 {[%clk 0:09:37]} 36... exf4 {[%clk 0:04:09]} 37. Qd2 {[%clk
0:09:31]} 37... f3 {[%clk 0:04:09]} 38. Ree1 {[%clk 0:09:23]} 38... Qe7 {[%clk
0:03:08]} 39. g3 {[%clk 0:07:54]} 39... Qf6 {[%clk 0:02:28]} 40. Nxa5 {[%clk
0:06:16]} 40... Ra8 {[%clk 0:02:00]} 41. Nc6 {[%clk 0:05:31]} 41... Re8 {[%clk
0:01:54]} 42. Nxb4 {[%clk 0:05:08]} 42... Re5 {[%clk 0:01:24]} 43. Nd5 {[%clk
0:04:55]} 43... Qg7 {[%clk 0:01:04]} 44. Rc7 {[%clk 0:04:48]} 44... Rd8 {[%clk
0:00:41]} 45. Qf4 {[%clk 0:04:29]} 45... h5 {[%clk 0:00:36]} 46. Rec1 {[%clk
0:04:14]} 46... Rf8 {[%clk 0:00:40]} 47. a5 {[%clk 0:03:39]} 47... Ra8 {[%clk
0:00:39]} 48. Nf6+ {[%clk 0:03:50]} 48... Kh8 {[%clk 0:00:46]} 49. Rc8+ {[%clk
0:04:14]} 49... Rxc8 {[%clk 0:00:46]} 50. Rxc8+ {[%clk 0:04:38]} 50... Qf8
{[%clk 0:00:57]} 51. Qh6+ {[%clk 0:04:46]} 51... Bh7 {[%clk 0:01:07]} 52. Qxh7#
{[%clk 0:04:57]} 1-0

[Variant "Standard"]
[Site "Europe Echecs"]

[Event "Championnat du monde jeunes U12"]
[Date "2024.11.26"]
[White "Wang, William Kaiyuan"]
[Black "Pennacchia, Domenico"]
[WhiteElo "1715"]
[BlackElo "1510"]
[Round "11.56"]
[Result "1-0"]
[TimeControl "5400+30"]

1. e4 {[%clk 1:30:59]} 1... c5 {[%clk 1:30:54]} 2. Nf3 {[%clk 1:31:27]} 2... d6
{[%clk 1:31:11]} 3. Bb5+ {[%clk 1:31:54]} 3... Bd7 {[%clk 1:31:26]} 4. Bxd7+
{[%clk 1:32:18]} 4... Qxd7 {[%clk 1:31:43]} 5. O-O {[%clk 1:32:40]} 5... g6
{[%clk 1:31:58]} 6. c3 {[%clk 1:33:01]} 6... Bg7 {[%clk 1:32:16]} 7. d4 {[%clk
1:33:16]} 7... cxd4 {[%clk 1:32:18]} 8. cxd4 {[%clk 1:33:42]} 8... e6 {[%clk
1:32:21]} 9. Nc3 {[%clk 1:33:55]} 9... Ne7 {[%clk 1:32:41]} 10. Qe2 {[%clk
1:34:01]} 10... O-O {[%clk 1:32:57]} 11. Bf4 {[%clk 1:34:12]} 11... d5 {[%clk
1:32:44]} 12. Rfd1 {[%clk 1:30:30]} 12... Nbc6 {[%clk 1:30:50]} 13. Ne5 {[%clk
1:22:43]} 13... Nxe5 {[%clk 1:30:51]} 14. Bxe5 {[%clk 1:21:27]} 14... Nc6 {[%clk
1:30:13]} 15. Rac1 {[%clk 1:16:08]} 15... Nxe5 {[%clk 1:28:00]} 16. dxe5 {[%clk
1:16:30]} 16... Bxe5 {[%clk 1:28:17]} 17. exd5 {[%clk 1:16:33]} 17... Bxc3
{[%clk 1:28:35]} 18. Rxc3 {[%clk 1:16:56]} 18... exd5 {[%clk 1:28:44]} 19. Rcd3
{[%clk 1:17:13]} 19... Rad8 {[%clk 1:28:38]} 20. Qf3 {[%clk 1:14:27]} 20... Rfe8
21. h4 {[%clk 1:14:27]} 21... Re5 {[%clk 1:27:41]} 22. g4 {[%clk 1:09:55]} 22...
Re4 {[%clk 1:26:27]} 23. Qxe4 {[%clk 1:09:47]} 23... dxe4 {[%clk 1:25:38]} 24.
Rxd7 {[%clk 1:10:15]} 24... Rc8 {[%clk 1:25:56]} 25. Rd8+ {[%clk 1:10:41]} 25...
Rxd8 {[%clk 1:26:21]} 26. Rxd8+ {[%clk 1:11:10]} 26... Kg7 {[%clk 1:26:41]} 27.
Rd7 {[%clk 1:11:38]} 27... Kf6 {[%clk 1:26:57]} 28. Rxb7 {[%clk 1:12:01]} 28...
g5 {[%clk 1:27:17]} 29. hxg5+ {[%clk 1:12:24]} 29... Kxg5 {[%clk 1:27:41]} 30.
Rxf7 {[%clk 1:12:48]} 30... Kxg4 {[%clk 1:28:04]} 31. Rxa7 {[%clk 1:13:11]}
31... h5 {[%clk 1:28:22]} 32. b4 {[%clk 1:13:36]} 32... h4 {[%clk 1:28:48]} 33.
Rh7 {[%clk 1:14:03]} 33... h3 {[%clk 1:29:05]} 34. b5 {[%clk 1:14:30]} 34... h2+
{[%clk 1:29:28]} 35. Kxh2 {[%clk 1:14:56]} 35... Kf5 {[%clk 1:29:52]} 36. b6
{[%clk 1:15:10]} 36... e3 {[%clk 1:30:12]} 37. fxe3 {[%clk 1:15:32]} 37... Ke4
{[%clk 1:30:36]} 38. b7 {[%clk 1:15:52]} 38... Kf5 {[%clk 1:31:01]} 39. b8=Q
{[%clk 1:16:12]} 39... Ke4 {[%clk 1:31:21]} 40. Qf4+ {[%clk 1:16:37]} 40... Kd3
{[%clk 1:31:44]} 41. Rd7+ {[%clk 1:17:04]} 41... Ke2 {[%clk 1:31:51]} 42. e4
{[%clk 1:17:24]} 42... Ke1 {[%clk 1:32:09]} 43. Qd2+ {[%clk 1:17:50]} 1-0

[Variant "Standard"]
[Site "Europe Echecs"]

[Event "Championnat du monde jeunes U12"]
[Date "2024.11.26"]
[White "Sharku, Uvejs"]
[Black "Boiko, Nazar"]
[WhiteElo "1516"]
[BlackElo "1614"]
[Round "11.59"]
[Result "1/2-1/2"]
[TimeControl "5400+30"]

1. d4 {[%clk 1:30:53]} 1... d5 {[%clk 1:30:53]} 2. Bf4 {[%clk 1:31:18]} 2... Bf5
{[%clk 1:31:14]} 3. e3 {[%clk 1:31:26]} 3... Nf6 {[%clk 1:31:33]} 4. Nf3 {[%clk
1:31:47]} 4... e6 {[%clk 1:31:58]} 5. Bd3 {[%clk 1:31:31]} 5... Bg6 {[%clk
1:32:22]} 6. c3 {[%clk 1:31:44]} 6... Bd6 {[%clk 1:32:38]} 7. Bg3 {[%clk
1:32:07]} 7... O-O {[%clk 1:32:39]} 8. Bxg6 {[%clk 1:31:54]} 8... hxg6 {[%clk
1:33:02]} 9. O-O {[%clk 1:32:02]} 9... c5 {[%clk 1:33:07]} 10. Ne5 {[%clk
1:31:38]} 10... Ne4 {[%clk 1:26:36]} 11. Nf3 {[%clk 1:27:17]} 11... Nxg3 {[%clk
1:19:51]} 12. hxg3 {[%clk 1:27:40]} 12... cxd4 {[%clk 1:04:36]} 13. cxd4 {[%clk
1:27:11]} 13... Nd7 {[%clk 0:52:07]} 14. Nc3 {[%clk 1:24:50]} 14... Nf6 {[%clk
0:40:01]} 15. Rc1 {[%clk 1:20:37]} 15... a6 {[%clk 0:37:25]} 16. a3 {[%clk
1:18:53]} 16... Rc8 {[%clk 0:31:23]} 17. Qd2 {[%clk 1:16:27]} 17... Qd7 {[%clk
0:24:46]} 18. Rc2 {[%clk 1:14:02]} 18... Rc7 {[%clk 0:22:27]} 19. Rfc1 {[%clk
1:14:02]} 19... Rfc8 {[%clk 0:22:39]} 20. Ne2 {[%clk 1:09:17]} 20... Ne4 {[%clk
0:19:10]} 21. Qd1 1/2-1/2

[Variant "Standard"]
[Site "Europe Echecs"]

[Event "Championnat du monde jeunes U12"]
[Date "2024.11.26"]
[White "Mohd Firdaus, Firast Haiqal"]
[Black "Berishvili, Davit"]
[WhiteElo "1514"]
[BlackElo "1578"]
[Round "11.60"]
[Result "0-1"]
[TimeControl "5400+30"]

1. Nf3 {[%clk 1:30:52]} 1... d5 {[%clk 1:30:56]} 2. d4 {[%clk 1:31:14]} 2... Nf6
{[%clk 1:31:22]} 3. Bf4 {[%clk 1:31:37]} 3... Bf5 {[%clk 1:31:37]} 4. e3 {[%clk
1:31:46]} 4... e6 {[%clk 1:32:03]} 5. Bd3 {[%clk 1:32:05]} 5... Bg6 {[%clk
1:32:28]} 6. Ne5 {[%clk 1:32:21]} 6... Nh5 {[%clk 1:32:35]} 7. Nxg6 {[%clk
1:32:40]} 7... hxg6 {[%clk 1:32:59]} 8. Qf3 {[%clk 1:31:41]} 8... Nxf4 {[%clk
1:33:01]} 9. Qxf4 {[%clk 1:32:06]} 9... Qd6 {[%clk 1:33:10]} 10. Qxd6 {[%clk
1:32:04]} 10... Bxd6 {[%clk 1:33:35]} 11. Nd2 {[%clk 1:31:38]} 11... Nd7 {[%clk
1:33:52]} 12. h3 {[%clk 1:31:09]} 12... g5 {[%clk 1:34:05]} 13. Ke2 {[%clk
1:30:12]} 13... Ke7 {[%clk 1:34:05]} 14. Nf3 {[%clk 1:30:08]} 14... f6 {[%clk
1:34:15]} 15. c4 {[%clk 1:29:31]} 15... dxc4 {[%clk 1:33:33]} 16. Bxc4 {[%clk
1:29:34]} 16... Rh6 {[%clk 1:33:56]} 17. Nd2 {[%clk 1:19:20]} 17... Rah8 {[%clk
1:33:25]} 18. Ne4 {[%clk 1:19:36]} 18... g4 {[%clk 1:33:26]} 19. Nxd6 {[%clk
1:19:26]} 19... cxd6 {[%clk 1:33:50]} 20. h4 {[%clk 1:19:17]} 20... g5 {[%clk
1:34:14]} 21. h5 {[%clk 1:19:27]} 21... Rxh5 {[%clk 1:34:38]} 22. Rxh5 {[%clk
1:19:43]} 22... Rxh5 {[%clk 1:35:03]} 23. g3 {[%clk 1:19:43]} 23... f5 {[%clk
1:33:49]} 24. Rc1 {[%clk 1:19:17]} 24... Nf6 {[%clk 1:33:50]} 25. Bb3 {[%clk
1:18:58]} 25... Kd7 {[%clk 1:34:10]} 26. Ba4+ {[%clk 1:19:09]} 26... Kd8 {[%clk
1:34:36]} 27. Bb3 {[%clk 1:19:18]} 27... d5 {[%clk 1:34:53]} 28. Bc2 {[%clk
1:19:11]} 28... Rh2 {[%clk 1:35:19]} 29. Bd3 {[%clk 1:17:52]} 29... Nh5 {[%clk
1:35:29]} 30. Rg1 {[%clk 1:18:12]} 30... Kc7 {[%clk 1:35:15]} 31. Bb5 {[%clk
1:18:18]} 31... Nf6 {[%clk 1:35:05]} 32. Rc1+ {[%clk 1:18:07]} 32... Kb8 {[%clk
1:34:01]} 33. Rc2 {[%clk 1:15:09]} 33... Ne4 {[%clk 1:32:46]} 34. Kf1 {[%clk
1:15:21]} 34... Rh7 {[%clk 1:30:59]} 35. Kg2 {[%clk 1:12:46]} 35... a6 {[%clk
1:31:12]} 36. Ba4 {[%clk 1:11:40]} 36... b5 {[%clk 1:31:26]} 37. Bb3 {[%clk
1:12:01]} 37... Kb7 {[%clk 1:31:52]} 38. Rc1 {[%clk 1:11:36]} 38... Nd2 {[%clk
1:29:49]} 39. Bd1 {[%clk 1:10:52]} 39... Rc7 {[%clk 1:27:06]} 40. Rxc7+ {[%clk
1:09:05]} 40... Kxc7 {[%clk 1:26:11]} 41. f3 {[%clk 1:07:44]} 41... gxf3+ {[%clk
1:26:36]} 42. Bxf3 {[%clk 1:08:06]} 42... Nc4 {[%clk 1:25:50]} 43. Kf2 {[%clk
1:05:52]} 43... g4 {[%clk 1:26:15]} 44. Bd1 {[%clk 1:06:05]} 44... Nxb2 {[%clk
1:26:41]} 45. Bb3 {[%clk 1:06:05]} 45... Nc4 {[%clk 1:26:47]} 46. Ke2 {[%clk
1:04:27]} 46... Nd6 {[%clk 1:26:54]} 47. Bc2 {[%clk 1:03:53]} 47... Kb6 {[%clk
1:26:55]} 48. Kd2 {[%clk 1:03:56]} 48... Nc4+ {[%clk 1:27:05]} 49. Kd3 {[%clk
1:04:17]} 49... Ka5 {[%clk 1:27:22]} 50. Bb3 {[%clk 1:03:51]} 50... Nd6 {[%clk
1:27:48]} 51. Ke2 {[%clk 1:03:15]} 51... Ne4 {[%clk 1:28:13]} 52. Bc2 {[%clk
1:03:03]} 52... Nxg3+ {[%clk 1:28:36]} 53. Kf2 {[%clk 1:03:27]} 53... Ne4+
{[%clk 1:28:57]} 54. Ke1 {[%clk 1:02:18]} 54... Kb4 {[%clk 1:28:04]} 55. Bb3
{[%clk 1:02:34]} 55... a5 {[%clk 1:28:27]} 56. Kf1 {[%clk 1:02:55]} 56... Nd2+
{[%clk 1:28:51]} 57. Kg2 {[%clk 1:03:15]} 57... Nxb3 {[%clk 1:29:16]} 58. axb3
{[%clk 1:03:40]} 58... Kxb3 {[%clk 1:29:41]} 0-1

[Variant "Standard"]
[Site "Europe Echecs"]

[Event "Championnat du monde jeunes U12"]
[Date "2024.11.26"]
[White "Mihajlovic, Stefan"]
[Black "Sobirov, Feruzbek"]
[WhiteElo "1594"]
[BlackElo "1487"]
[Round "11.61"]
[Result "0-1"]
[TimeControl "5400+30"]

1. e4 {[%clk 1:30:50]} 1... e6 {[%clk 1:30:24]} 2. d4 {[%clk 1:29:47]} 2... d5
{[%clk 1:29:20]} 3. e5 {[%clk 1:28:54]} 3... c5 {[%clk 1:28:39]} 4. c3 {[%clk
1:28:42]} 4... Nc6 {[%clk 1:28:38]} 5. Nf3 {[%clk 1:26:54]} 5... Qb6 {[%clk
1:24:24]} 6. Be2 {[%clk 1:25:28]} 6... cxd4 {[%clk 1:22:51]} 7. cxd4 {[%clk
1:23:46]} 7... Nge7 {[%clk 1:22:33]} 8. b3 {[%clk 1:22:32]} 8... Nf5 {[%clk
1:22:50]} 9. Bb2 {[%clk 1:22:44]} 9... Bb4+ {[%clk 1:23:08]} 10. Nbd2 {[%clk
1:22:38]} 10... Nfxd4 {[%clk 1:23:25]} 11. Nxd4 {[%clk 1:23:01]} 11... Nxd4
{[%clk 1:23:48]} 12. Bxd4 {[%clk 1:23:13]} 12... Qxd4 {[%clk 1:24:11]} 13. Bb5+
{[%clk 1:23:20]} 13... Bd7 {[%clk 1:24:25]} 14. Bxd7+ {[%clk 1:22:30]} 14...
Kxd7 {[%clk 1:24:27]} 15. Rc1 {[%clk 1:21:52]} 15... Qxe5+ {[%clk 1:24:25]} 16.
Kf1 {[%clk 1:21:57]} 16... Qd4 {[%clk 1:24:42]} 17. Qc2 {[%clk 1:21:19]} 17...
Rac8 {[%clk 1:25:05]} 18. Nc4 {[%clk 1:21:29]} 18... Ke7 {[%clk 1:24:22]} 19.
Rd1 {[%clk 1:20:47]} 19... Qf4 {[%clk 1:24:02]} 20. Qd3 {[%clk 1:20:37]} 20...
dxc4 {[%clk 1:23:51]} 21. Qd7+ {[%clk 1:20:35]} 21... Kf6 {[%clk 1:24:12]} 22.
Rd4 {[%clk 1:18:41]} 22... Qc1+ {[%clk 1:24:22]} 23. Ke2 {[%clk 1:17:03]} 23...
Qc2+ {[%clk 1:23:53]} 24. Kf3 {[%clk 1:17:02]} 24... Qc3+ {[%clk 1:24:10]} 25.
Kg4 {[%clk 1:17:09]} 25... h5+ 0-1

[Variant "Standard"]
[Site "Europe Echecs"]